bitfinex/quotes_BTCUSD_20240712
["timestamp","ask_amount","ask_price","bid_price","bid_amount"]
[1720792324502,0.52749921,57890.0,57880.0,0.0001]
[1720792324710,0.04195512,57889.0,57880.0,0.0001]
[1720792324928,0.0598,57887.0,57880.0,0.0001]
[1720792325131,0.01077546,57886.0,57880.0,0.0001]
[1720792325341,0.06550283,57889.0,57880.0,0.0001]
[1720792325342,0.01077546,57885.0,57880.0,0.0001]
[1720792325543,0.01077546,57884.0,57880.0,0.0001]
[1720792325755,0.01077546,57883.0,57880.0,0.0001]
[1720792325962,0.52749921,57890.0,57880.0,0.0001]
[1720792325963,0.01077546,57882.0,57880.0,0.0001]
[1720792326185,0.57912827,57890.0,57881.0,0.00337602]
[1720792326186,0.52749921,57890.0,57881.0,0.00337602]
[1720792326390,0.05267651,57889.0,57881.0,0.00367602]
[1720792326605,0.01077528,57889.0,57882.0,0.08511435]
[1720792326821,0.01077528,57888.0,57880.0,0.0001]
[1720792327025,0.06460273,57888.0,57880.0,0.0001]
[1720792327246,0.01077502,57887.0,57880.0,0.0001]
[1720792327460,0.11228903,57887.0,57880.0,0.0001]
[1720792327664,0.05248903,57886.0,57880.0,0.0001]
[1720792327877,0.08157672,57885.0,57880.0,0.0001]
[1720792328112,0.0598,57882.0,57880.0,0.0001]
[1720792328332,0.02177672,57885.0,57880.0,0.0001]
[1720792328333,0.01077502,57881.0,57880.0,0.0001]
[1720792328538,0.0528286,57881.0,57880.0,0.0001]
[1720792328974,0.1312342,57881.0,57880.0,0.0001]
[1720792329200,0.0528286,57881.0,57880.0,0.0001]
[1720792329438,0.1126286,57881.0,57880.0,0.0001]
[1720792329840,0.0528286,57881.0,57880.0,0.0001]
[1720792330276,0.10448584,57881.0,57880.0,0.0001]
[1720792330483,0.0004,57880.0,57875.0,0.063]
[1720792330723,0.05378108,57879.0,57876.0,0.0003]
[1720792330930,0.0004,57880.0,57876.0,0.0003]
[1720792330931,0.01077607,57878.0,57876.0,0.0003]
[1720792331137,0.0520549,57880.0,57877.0,0.0003]
[1720792331354,0.0519549,57880.0,57877.0,0.0003]
[1720792331861,0.0516549,57879.0,57877.0,0.0003]
[1720792332196,0.07748235,57879.0,57877.0,0.0003]
[1720792332396,0.05165255,57878.0,57877.0,0.0003]
[1720792332927,0.07778235,57880.0,57875.0,0.063]
[1720792332928,0.05165255,57879.0,57878.0,0.0003]
[1720792333132,0.1036098,57880.0,57877.0,0.00367857]
[1720792333334,0.0774813,57878.0,57875.0,0.063]
[1720792333537,0.0774813,57876.0,57875.0,0.063]
[1720792333901,0.0774813,57876.0,57871.0,0.0647]
[1720792333902,0.10331304,57876.0,57871.0,0.0647]
[1720792334095,0.05165839,57872.0,57871.0,0.0647]
[1720792334320,0.07748759,57872.0,57871.0,0.0647]
[1720792334536,0.10321679,57873.0,57871.0,0.0647]
[1720792335369,0.1291413,57873.0,57871.0,0.0647]
[1720792336183,0.1291413,57872.0,57871.0,0.0647]
[1720792336741,0.1291413,57873.0,57871.0,0.065]
[1720792336970,0.0003,57880.0,57874.0,0.0003]
[1720792337142,0.15538985,57880.0,57877.0,0.0003]
[1720792337344,0.0003,57880.0,57877.0,0.0003]
[1720792337871,0.0002,57880.0,57879.0,0.0003]
[1720792338238,0.0002,57880.0,57879.0,0.0652]
[1720792338448,0.15528985,57880.0,57879.0,0.0649]
[1720792338698,0.19880052,57880.0,57879.0,0.0649]
[1720792338899,0.04371067,57880.0,57879.0,0.0649]
[1720792339634,0.19884254,57880.0,57879.0,0.0652]
[1720792339815,0.19884254,57880.0,57879.0,0.0649]
[1720792339816,0.04371067,57880.0,57879.0,0.0649]
[1720792340018,0.19884254,57880.0,57879.0,0.0649]
[1720792340263,0.04371067,57880.0,57879.0,0.0649]
[1720792340452,0.19882598,57880.0,57879.0,0.0649]
[1720792340606,0.15535659,57880.0,57879.0,0.0649]
[1720792340805,0.04367033,57880.0,57879.0,0.0649]
[1720792341009,0.05444638,57880.0,57879.0,0.0649]
[1720792341406,0.05444638,57880.0,57879.0,0.06828497]
[1720792342223,0.0002,57880.0,57879.0,0.06828497]
[1720792342389,0.05441623,57880.0,57879.0,0.06828497]
[1720792342826,0.05441623,57880.0,57879.0,0.06858497]
[1720792343033,0.05441647,57880.0,57879.0,0.06858497]
[1720792343200,0.05441647,57880.0,57879.0,0.06828497]
[1720792343757,0.0544883,57880.0,57879.0,0.06828497]
[1720792343961,0.05448703,57880.0,57879.0,0.06828497]
[1720792344183,0.05448703,57880.0,57879.0,0.06858497]
[1720792344575,0.05448703,57880.0,57879.0,0.06828497]
[1720792345739,0.05448703,57880.0,57879.0,0.06858497]
[1720792345946,0.05448703,57880.0,57879.0,0.06828497]
[1720792346147,0.05448703,57880.0,57879.0,0.05928497]
[1720792346347,0.05448703,57880.0,57879.0,0.05958497]
[1720792346576,0.05448703,57880.0,57879.0,0.11958497]
[1720792346799,0.05448703,57880.0,57879.0,0.23508902]
[1720792347003,0.0002,57880.0,57879.0,0.68110697]
[1720792347198,0.01097413,57880.0,57879.0,0.68110697]
[1720792347404,0.05539638,57880.0,57879.0,0.68810697]
[1720792347776,0.05439638,57880.0,57879.0,0.68110697]
[1720792348358,0.05439638,57880.0,57879.0,0.33555897]
[1720792349242,0.14689665,57885.0,57883.0,0.0003]
[1720792349461,0.31472358,57897.0,57886.0,0.0003]
[1720792349652,0.12,57895.0,57884.0,0.00292933]
[1720792349843,0.12,57892.0,57885.0,0.023]
[1720792350043,0.12,57895.0,57885.0,0.023]
[1720792350282,0.12,57895.0,57886.0,0.00292933]
[1720792350451,0.12,57895.0,57883.0,0.014]
[1720792350591,0.25517266,57897.0,57884.0,0.02606353]
[1720792350592,0.37517266,57897.0,57884.0,0.02606353]
[1720792350795,0.12,57897.0,57884.0,0.02606353]
[1720792351596,0.12,57897.0,57884.0,0.03106353]
[1720792351928,0.60070532,57898.0,57884.0,0.03106353]
[1720792351929,0.4655425,57898.0,57884.0,0.03106353]
[1720792352127,0.95886845,57899.0,57885.0,0.08511435]
[1720792352350,0.95886845,57899.0,57891.0,0.08511435]
[1720792352351,0.01316928,57899.0,57891.0,0.08511435]
[1720792352552,5.0,57900.0,57891.0,0.08511435]
[1720792352553,5.0,57900.0,57898.0,0.0603]
[1720792352811,5.0,57900.0,57898.0,0.1391]
[1720792353768,5.01349903,57900.0,57898.0,0.1391]
[1720792354165,5.01449903,57900.0,57898.0,0.0713]
[1720792354364,5.01449903,57900.0,57898.0,0.011]
[1720792354365,0.199,57899.0,57898.0,0.011]
[1720792354569,0.25374183,57899.0,57898.0,0.011]
[1720792354814,0.079,57899.0,57888.0,0.0653]
[1720792355016,0.079,57899.0,57889.0,0.023]
[1720792355017,0.30812807,57898.0,57889.0,0.023]
[1720792355216,0.15535104,57893.0,57889.0,0.0029261]
[1720792355416,0.15535104,57892.0,57888.0,0.0653]
[1720792355780,0.04501128,57893.0,57888.0,0.0653]
[1720792355781,0.15535104,57891.0,57888.0,0.0653]
[1720792355987,0.15535104,57890.0,57889.0,0.0029261]
[1720792356192,0.17476175,57894.0,57888.0,0.0653]
[1720792356392,0.15531743,57890.0,57889.0,0.0029261]
[1720792356594,0.15531743,57890.0,57888.0,0.0653]
[1720792356800,0.12,57894.0,57889.0,0.0029261]
[1720792357025,0.12,57894.0,57888.0,0.0653]
[1720792357026,0.132,57894.0,57888.0,0.0653]
[1720792357228,0.15531988,57889.0,57888.0,0.0653]
[1720792357383,0.001,57890.0,57889.0,0.014]
[1720792357583,0.03782691,57890.0,57889.0,0.014]
[1720792357956,0.03682691,57890.0,57888.0,0.0653]
[1720792358157,0.03682691,57889.0,57888.0,0.0653]
[1720792358522,0.03682691,57889.0,57888.0,0.0793]
[1720792358945,0.03682691,57889.0,57888.0,0.16734045]
[1720792359188,0.03682691,57889.0,57888.0,0.19543045]
[1720792359402,0.03682691,57889.0,57888.0,0.81758145]
[1720792359604,0.15631988,57894.0,57888.0,0.81758145]
[1720792359605,0.1035077,57890.0,57889.0,0.518232]
[1720792359824,0.1035077,57890.0,57889.0,0.04797505]
[1720792360003,0.1035077,57891.0,57889.0,0.023]
[1720792360227,0.10350586,57891.0,57889.0,0.0259261]
[1720792360422,0.001,57890.0,57889.0,0.0259261]
[1720792360631,0.001,57890.0,57889.0,0.0029261]
[1720792360632,0.03824935,57890.0,57889.0,0.0029261]
[1720792360839,0.03824935,57890.0,57889.0,0.0019261]
[1720792361048,0.03724935,57890.0,57889.0,0.00288064]
[1720792361449,0.03724935,57890.0,57888.0,0.014]
[1720792361652,0.03724935,57889.0,57888.0,0.014]
[1720792361858,0.03724935,57892.0,57888.0,0.014]
[1720792362061,0.03724935,57891.0,57889.0,0.0663]
[1720792362263,0.03724935,57890.0,57889.0,0.0663]
[1720792362647,0.03724935,57892.0,57889.0,0.0663]
[1720792362843,0.1552408,57893.0,57889.0,0.0663]
[1720792362844,0.03764708,57891.0,57889.0,0.0663]
[1720792363046,0.1552465,57893.0,57890.0,0.02587018]
[1720792363249,0.17465231,57899.0,57890.0,0.02587018]
[1720792363250,0.03764688,57892.0,57890.0,0.02587018]
[1720792363446,0.1552465,57894.0,57890.0,0.02587018]
[1720792363447,0.03764672,57891.0,57890.0,0.02587018]
[1720792364240,0.03764672,57891.0,57890.0,0.13115155]
[1720792364462,0.1810883,57891.0,57890.0,1.24174435]
[1720792364662,0.12935262,57892.0,57891.0,0.98369]
[1720792364663,0.0776071,57892.0,57891.0,0.98369]
[1720792364890,5.15523788,57900.0,57896.0,0.12]
[1720792364891,0.0776071,57897.0,57896.0,0.12]
[1720792365083,0.1034812,57899.0,57896.0,0.12]
[1720792365084,0.05172996,57899.0,57898.0,0.518152]
[1720792365310,5.0,57900.0,57898.0,0.195717]
[1720792365542,5.0,57900.0,57899.0,0.195714]
[1720792366029,5.05170608,57900.0,57899.0,0.02585759]
[1720792366259,5.0,57900.0,57899.0,0.66400059]
[1720792366490,5.0,57900.0,57899.0,1.417401]
[1720792366750,5.0,57900.0,57899.0,1.67269599]
[1720792367239,5.0,57900.0,57899.0,1.68669599]
[1720792368098,5.0,57900.0,57899.0,2.33212499]
[1720792368544,3.3231,57900.0,57899.0,2.95975399]
[1720792368779,3.3231,57900.0,57899.0,2.99859399]
[1720792368780,2.19087387,57900.0,57899.0,2.99859399]
[1720792368979,0.002,57929.0,57924.0,0.12]
[1720792369184,0.002,57929.0,57928.0,0.172628]
[1720792369399,0.002,57929.0,57928.0,0.517884]
[1720792369617,0.002,57929.0,57928.0,0.00285759]
[1720792369825,0.002,57929.0,57928.0,0.17548559]
[1720792370066,0.002,57929.0,57928.0,0.05493325]
[1720792370271,0.002,57929.0,57928.0,0.00285759]
[1720792370656,0.002,57929.0,57928.0,0.014]
[1720792370846,0.002,57929.0,57928.0,0.90644998]
[1720792371060,0.002,57929.0,57928.0,1.37170598]
[1720792371185,0.002,57929.0,57928.0,1.52087658]
[1720792371392,0.002,57929.0,57928.0,1.80307658]
[1720792372139,0.002,57929.0,57928.0,1.78907658]
[1720792372660,0.002,57929.0,57928.0,1.80307658]
[1720792373590,0.002,57929.0,57928.0,0.66374159]
[1720792373828,0.002,57929.0,57928.0,0.67774159]
[1720792374002,0.002,57929.0,57928.0,0.69174159]
[1720792374421,0.002,57929.0,57928.0,0.05385759]
[1720792374630,0.002,57929.0,57928.0,0.03085759]
[1720792375137,0.002,57929.0,57928.0,0.028]
[1720792375377,0.002,57929.0,57928.0,0.01669377]
[1720792375585,0.002,57929.0,57928.0,0.00269377]
[1720792375761,0.002,57929.0,57928.0,0.01669377]
[1720792375983,0.002,57929.0,57928.0,0.028]
[1720792376191,0.002,57929.0,57928.0,0.00269377]
[1720792376589,0.002,57929.0,57928.0,0.028]
[1720792376796,0.002,57929.0,57928.0,0.03069377]
[1720792378050,0.002,57929.0,57928.0,0.028]
[1720792378463,0.01859209,57929.0,57928.0,0.028]
[1720792378874,0.002,57929.0,57928.0,0.028]
[1720792379078,0.0789,57929.0,57928.0,0.028]
[1720792379432,0.0789,57929.0,57909.0,0.12]
[1720792379433,0.1863,57928.0,57909.0,0.12]
[1720792379797,0.1863,57928.0,57911.0,0.172678]
[1720792380002,0.0789,57929.0,57913.0,0.00265912]
[1720792380003,0.0663,57923.0,57913.0,0.00265912]
[1720792380405,0.0663,57923.0,57908.0,0.292687]
[1720792380553,0.0663,57923.0,57909.0,0.06415253]
[1720792380757,0.0663,57923.0,57910.0,0.00265912]
[1720792380962,0.0663,57923.0,57907.0,0.172689]
[1720792381169,0.12,57922.0,57912.0,0.014]
[1720792381370,0.0818,57921.0,57912.0,0.014]
[1720792381543,0.0663,57920.0,57912.0,0.014]
[1720792381742,0.08774,57920.0,57912.0,0.014]
[1720792382344,0.0663,57920.0,57919.0,0.08511435]
[1720792382768,0.0663,57920.0,57913.0,0.20856783]
[1720792382969,0.0663,57920.0,57919.0,0.00265912]
[1720792383169,0.0663,57920.0,57916.0,0.172661]
[1720792383346,0.0663,57920.0,57919.0,0.00266704]
[1720792383562,0.0663,57920.0,57914.0,0.02645299]
[1720792383749,0.0663,57920.0,57919.0,0.028]
[1720792383966,0.0663,57920.0,57919.0,0.014]
[1720792384352,0.0663,57920.0,57916.0,0.014]
[1720792384558,0.0663,57920.0,57917.0,0.02566704]
[1720792385407,0.01481,57919.0,57917.0,0.02566704]
[1720792386003,0.0663,57920.0,57919.0,0.014]
[1720792386151,0.0663,57920.0,57919.0,0.028]
[1720792386360,0.12,57928.0,57919.0,0.028]
[1720792386361,0.00828,57933.0,57928.0,0.172628]
[1720792386572,0.00828,57933.0,57928.0,1.11119409]
[1720792386772,0.00828,57933.0,57928.0,1.45645009]
[1720792386949,0.00828,57933.0,57928.0,0.56082374]
[1720792387133,0.00828,57933.0,57928.0,0.66356094]
[1720792387339,0.00828,57933.0,57928.0,0.02567694]
[1720792387744,0.00828,57933.0,57928.0,0.03767694]
[1720792388371,0.0637,57929.0,57928.0,0.01467694]
[1720792388595,0.002,57929.0,57928.0,0.01467694]
[1720792388908,0.002,57929.0,57928.0,0.03767694]
[1720792389106,0.002,57929.0,57928.0,0.195628]
[1720792389298,0.002,57929.0,57928.0,0.54355306]
[1720792389499,0.002,57929.0,57928.0,0.21229706]
[1720792389875,0.002,57929.0,57928.0,0.55755306]
[1720792390528,0.002,57929.0,57928.0,1.36806506]
[1720792390719,0.002,57929.0,57928.0,1.24806506]
[1720792390921,0.002,57929.0,57928.0,1.36806506]
[1720792393397,0.002,57929.0,57928.0,1.38206506]
[1720792393823,0.002,57929.0,57928.0,1.36806506]
[1720792394075,0.002,57929.0,57928.0,1.53830246]
[1720792394213,0.002,57929.0,57928.0,1.75230246]
[1720792394570,0.002,57929.0,57928.0,1.55230246]
[1720792394701,0.002,57929.0,57928.0,1.53830246]
[1720792394910,0.062,57942.0,57928.0,1.53830246]
[1720792394911,0.51068611,57951.0,57940.0,0.12]
[1720792395113,0.05451531,57958.0,57941.0,0.00572582]
[1720792395312,0.03929769,57957.0,57941.0,0.12306353]
[1720792395646,0.03929769,57956.0,57941.0,0.12306353]
[1720792395826,0.03929769,57955.0,57941.0,0.12306353]
[1720792396031,0.09687145,57957.0,57943.0,0.12]
[1720792396259,0.03851554,57956.0,57944.0,0.00306353]
[1720792396461,0.03851554,57955.0,57944.0,0.00306353]
[1720792396694,0.03851554,57954.0,57945.0,0.00263754]
[1720792396865,0.04679894,57957.0,57946.0,0.00306353]
[1720792397021,0.03919191,57956.0,57946.0,0.00306353]
[1720792397223,0.03919191,57955.0,57946.0,0.00306353]
[1720792397428,0.03919191,57954.0,57944.0,0.00306353]
[1720792397630,0.03919191,57953.0,57947.0,0.00263754]
[1720792397964,0.1421,57957.0,57948.0,0.00263754]
[1720792398173,0.1421,57957.0,57940.0,0.008]
[1720792398174,0.18115114,57956.0,57943.0,0.12]
[1720792398501,0.0807,57953.0,57946.0,0.12]
[1720792398726,0.0807,57953.0,57946.0,0.003]
[1720792399162,0.0807,57953.0,57944.0,0.0001]
[1720792399363,0.0807,57953.0,57948.0,0.002]
[1720792399568,0.02119141,57952.0,57948.0,0.002]
[1720792399774,0.02119141,57952.0,57949.0,0.00263754]
[1720792400008,0.0807,57953.0,57950.0,0.12]
[1720792400242,0.0807,57953.0,57950.0,0.12263754]
[1720792400441,0.0807,57953.0,57950.0,0.12]
[1720792400641,0.0807,57953.0,57951.0,0.00263754]
[1720792401123,0.0807,57953.0,57950.0,0.12]
[1720792401333,0.0807,57953.0,57952.0,0.00263754]
[1720792401538,0.09509,57953.0,57944.0,0.0001]
[1720792401734,0.08749,57953.0,57952.0,0.0029013]
[1720792401960,0.0731,57953.0,57950.0,0.005]
[1720792402365,0.0731,57953.0,57944.0,0.00316353]
[1720792402578,0.08673,57953.0,57944.0,0.00316353]
[1720792402783,0.14713,57953.0,57952.0,0.005]
[1720792402984,0.17203864,57953.0,57952.0,0.005]
[1720792403773,0.1335,57953.0,57952.0,0.005]
[1720792403985,0.17210348,57953.0,57952.0,0.005]
[1720792404206,0.17210348,57953.0,57952.0,0.003]
[1720792404554,0.94330348,57953.0,57952.0,0.003]
[1720792404760,0.1,57949.0,57944.0,0.0051]
[1720792404959,0.1434,57946.0,57944.0,0.0001]
[1720792405796,0.03824238,57945.0,57944.0,0.0001]
[1720792406113,0.03824238,57945.0,57944.0,0.0141]
[1720792406490,0.03824238,57945.0,57944.0,0.0281]
[1720792407493,0.05631312,57945.0,57944.0,0.0001]
[1720792408134,0.05621729,57945.0,57944.0,0.0141]
[1720792408335,0.25644285,57945.0,57944.0,0.0281]
[1720792408625,0.25644285,57945.0,57944.0,0.028]
[1720792408839,0.45291729,57945.0,57944.0,0.028]
[1720792409009,0.50445365,57945.0,57944.0,0.028]
[1720792409210,0.45291729,57945.0,57944.0,0.028]
[1720792409410,0.45291729,57945.0,57930.0,0.08511435]
[1720792409411,0.59792893,57945.0,57930.0,0.08511435]
[1720792409613,0.18837385,57942.0,57929.0,0.00306353]
[1720792409815,0.0897204,57941.0,57931.0,0.00276304]
[1720792409975,0.03814655,57940.0,57924.0,0.20511435]
[1720792410183,0.05157385,57938.0,57925.0,0.12276304]
[1720792410397,0.11344655,57937.0,57926.0,0.12]
[1720792410602,0.12677385,57937.0,57930.0,0.014]
[1720792410814,0.09268903,57936.0,57930.0,0.014]
[1720792411124,0.09268903,57936.0,57924.0,0.08511435]
[1720792411125,0.10566039,57936.0,57926.0,0.12]
[1720792411325,0.10566039,57936.0,57927.0,0.00276304]
[1720792411326,0.10571897,57936.0,57927.0,0.00276304]
[1720792411529,0.05163243,57935.0,57930.0,0.12]
[1720792411958,0.05153243,57935.0,57930.0,0.12]
[1720792412185,0.07744865,57935.0,57931.0,0.08511435]
[1720792412544,0.07744865,57935.0,57932.0,0.00276304]
[1720792413056,0.07844865,57935.0,57932.0,0.00276304]
[1720792413256,0.07744865,57934.0,57932.0,0.00276304]
[1720792414260,0.07744865,57933.0,57932.0,0.00276304]
[1720792414472,0.07744865,57933.0,57930.0,0.132]
[1720792414683,0.07744865,57933.0,57930.0,0.12]
[1720792414886,0.10326487,57934.0,57931.0,0.00276304]
[1720792414887,0.07744865,57934.0,57931.0,0.00276304]
[1720792415096,0.0307546,57933.0,57932.0,0.013]
[1720792415304,0.19851947,57933.0,57932.0,0.013]
[1720792415510,0.16776487,57933.0,57932.0,0.01]
[1720792415720,0.16776487,57933.0,57932.0,0.13]
[1720792415927,0.16776487,57933.0,57932.0,0.13277408]
[1720792415928,0.001,57933.0,57932.0,0.13277408]
[1720792416127,0.001,57933.0,57932.0,0.12277408]
[1720792416370,0.07753071,57936.0,57935.0,0.12]
[1720792416778,0.10767656,57939.0,57933.0,0.12]
[1720792416982,0.10767656,57939.0,57935.0,0.00277408]
[1720792417194,0.10767656,57939.0,57936.0,0.00277408]
[1720792417407,0.082,57942.0,57935.0,0.12]
[1720792417609,0.082,57942.0,57937.0,0.00252189]
[1720792417822,0.08119125,57940.0,57935.0,0.12]
[1720792418025,0.08119125,57940.0,57938.0,0.00252189]
[1720792418242,0.08119125,57940.0,57933.0,0.119]
[1720792418856,0.08219125,57940.0,57937.0,0.119]
[1720792419081,0.03792196,57939.0,57937.0,0.118]
[1720792419287,0.03792196,57938.0,57937.0,0.118]
[1720792419910,0.03792196,57938.0,57936.0,0.118]
[1720792420119,0.03792196,57937.0,57936.0,0.118]
[1720792420480,0.01201132,57937.0,57936.0,0.118]
[1720792420651,0.08319125,57940.0,57937.0,0.118]
[1720792420853,0.03799859,57939.0,57937.0,0.118]
[1720792421054,0.08219125,57940.0,57937.0,0.118]
[1720792421055,0.03799859,57938.0,57937.0,0.118]
[1720792421877,0.03899859,57938.0,57937.0,0.129]
[1720792422126,0.03899859,57938.0,57937.0,0.011]
[1720792422264,0.03899859,57938.0,57937.0,0.01406353]
[1720792422265,0.07472325,57938.0,57937.0,0.01406353]
[1720792422464,0.03899859,57938.0,57937.0,0.01406353]
[1720792422738,0.05706933,57938.0,57937.0,0.01406353]
[1720792423061,0.05706933,57938.0,57937.0,0.01684656]
[1720792423711,0.05806933,57938.0,57937.0,0.02684656]
[1720792424022,0.17993927,57938.0,57937.0,0.02684656]
[1720792424267,0.20126933,57938.0,57937.0,0.02684656]
[1720792424481,0.62670818,57938.0,57937.0,0.00329619]
[1720792424680,0.62670818,57938.0,57937.0,0.00593755]
[1720792424681,1.68275267,57938.0,57937.0,0.00593755]
[1720792424833,0.0824,57937.0,57936.0,3.94095955]
[1720792425157,1.27493046,57937.0,57936.0,3.91004884]
[1720792425334,1.20188486,57937.0,57936.0,3.91004884]
[1720792425753,1.36837486,57937.0,57936.0,3.87710884]
[1720792425961,1.36837486,57937.0,57936.0,3.85589339]
[1720792426161,0.56275086,57937.0,57936.0,3.86789339]
[1720792426315,0.18515446,57937.0,57936.0,3.86789339]
[1720792426516,0.37404746,57937.0,57936.0,3.86789339]
[1720792427144,0.37504746,57937.0,57936.0,3.87089339]
[1720792427954,0.37548755,57937.0,57936.0,3.87089339]
[1720792428176,0.74572495,57937.0,57936.0,3.80544839]
[1720792428422,0.84572562,57937.0,57936.0,3.70081869]
[1720792428659,1.40028516,57937.0,57936.0,2.22840769]
[1720792428872,1.40028516,57937.0,57936.0,1.88697652]
[1720792429087,1.40028516,57937.0,57904.0,0.51068611]
[1720792429088,0.001,57916.0,57904.0,0.51068611]
[1720792429334,0.15518413,57909.0,57904.0,0.51068611]
[1720792429539,0.19391582,57908.0,57904.0,0.62868611]
[1720792429745,0.17458215,57913.0,57899.0,0.1431]
[1720792429746,0.19391582,57907.0,57902.0,0.118]
[1720792429951,0.06999563,57914.0,57899.0,0.1431]
[1720792429952,0.15514118,57903.0,57899.0,0.1431]
[1720792430153,0.03873169,57902.0,57899.0,0.2611]
[1720792430355,0.03873169,57902.0,57891.0,0.345476]
[1720792430356,0.03863169,57901.0,57900.0,0.118]
[1720792430825,0.16773849,57901.0,57900.0,0.118]
[1720792431038,0.25459897,57923.0,57900.0,0.118]
[1720792431039,0.0651,57924.0,57900.0,0.611423]
[1720792431242,0.12918725,57909.0,57908.0,0.118]
[1720792431448,0.15809873,57913.0,57909.0,0.117]
[1720792431854,0.15809873,57913.0,57901.0,0.0034538]
[1720792431855,0.00306353,57913.0,57912.0,0.2655]
[1720792432057,0.0787,57925.0,57912.0,0.2655]
[1720792432058,0.12915045,57914.0,57913.0,0.117]
[1720792432262,0.08054704,57915.0,57914.0,0.116]
[1720792432463,0.07748351,57916.0,57915.0,0.116]
[1720792432652,0.07748351,57917.0,57916.0,0.139]
[1720792432858,0.07738351,57917.0,57916.0,0.139]
[1720792433222,0.10329745,57918.0,57916.0,0.141063]
[1720792433424,0.00306353,57917.0,57916.0,0.118063]
[1720792433628,0.10636098,57917.0,57916.0,0.141063]
[1720792433827,0.10329745,57917.0,57916.0,0.140063]
[1720792434032,0.10329745,57917.0,57916.0,0.139]
[1720792434352,0.10329745,57918.0,57916.0,0.139]
[1720792434546,0.10329745,57918.0,57917.0,0.116]
[1720792434754,0.10429745,57918.0,57917.0,0.31066]
[1720792434965,0.05164262,57922.0,57921.0,0.115]
[1720792435171,0.05154262,57923.0,57922.0,0.138]
[1720792435382,0.00306353,57924.0,57923.0,0.114]
[1720792435590,0.10329745,57927.0,57926.0,0.114]
[1720792435994,0.10329745,57927.0,57926.0,0.137]
[1720792436198,0.01665152,57930.0,57929.0,0.114]
[1720792436199,0.12915045,57930.0,57929.0,0.114]
[1720792436402,0.12915045,57930.0,57929.0,0.2809]
[1720792436403,0.10316526,57930.0,57929.0,0.2809]
[1720792436612,0.01629135,57932.0,57930.0,0.114]
[1720792436741,0.01629135,57932.0,57929.0,0.023]
[1720792436742,0.15998598,57932.0,57929.0,0.023]
[1720792436978,0.12905045,57932.0,57928.0,0.023]
[1720792437210,0.1550352,57937.0,57928.0,0.023]
[1720792437407,0.15490266,57937.0,57930.0,0.114]
[1720792437615,0.15490266,57937.0,57930.0,0.113]
[1720792437818,0.15490266,57937.0,57928.0,0.022]
[1720792437819,0.03415203,57938.0,57932.0,0.113]
[1720792438031,0.15490262,57937.0,57934.0,0.113]
[1720792438231,0.15490262,57937.0,57936.0,0.0001]
[1720792438438,0.18905465,57938.0,57936.0,0.0001]
[1720792438651,0.0372608,57937.0,57936.0,0.1131]
[1720792439051,0.0372608,57937.0,57936.0,0.1121]
[1720792439687,0.0372608,57937.0,57935.0,0.1121]
[1720792439976,0.0372608,57936.0,57934.0,0.1121]
[1720792440179,0.03415203,57938.0,57937.0,0.1121]
[1720792440887,0.01807074,57938.0,57937.0,0.2558]
[1720792441096,0.01807074,57938.0,57937.0,0.2788]
[1720792441304,0.01807074,57938.0,57937.0,0.451401]
[1720792441305,0.05527997,57938.0,57937.0,0.451401]
[1720792441505,0.05527997,57938.0,57937.0,1.392805]
[1720792441717,0.01807074,57938.0,57937.0,1.047603]
[1720792441928,0.01807074,57938.0,57937.0,0.875002]
[1720792442138,0.01807074,57938.0,57937.0,1.392805]
[1720792442342,0.17427275,57954.0,57941.0,0.1121]
[1720792442343,0.07744884,57942.0,57941.0,0.1121]
[1720792442545,0.07744884,57943.0,57942.0,0.1111]
[1720792442671,0.23380911,57952.0,57942.0,0.1111]
[1720792442672,0.01807074,57944.0,57943.0,0.1101]
[1720792442874,0.01807074,57944.0,57942.0,0.023]
[1720792442875,0.01807074,57944.0,57942.0,0.1101]
[1720792443075,0.03731393,57943.0,57942.0,0.1101]
[1720792443328,0.03731393,57943.0,57942.0,0.1331]
[1720792443329,0.03687324,57943.0,57942.0,0.1331]
[1720792443912,0.03687324,57943.0,57937.0,0.265]
[1720792443913,0.09727324,57943.0,57937.0,0.265]
[1720792444113,0.1290809,57940.0,57937.0,0.014]
[1720792444335,0.16595414,57939.0,57937.0,0.014]
[1720792444545,0.16595414,57938.0,57937.0,0.014]
[1720792445092,0.05446865,57938.0,57937.0,0.01]
[1720792445506,0.03887324,57938.0,57937.0,0.024]
[1720792445704,0.03787324,57938.0,57937.0,0.014]
[1720792445942,0.03687324,57938.0,57934.0,0.1101]
[1720792446142,0.05804917,57938.0,57937.0,0.024]
[1720792446344,0.03887324,57938.0,57937.0,0.024]
[1720792446546,0.03991459,57938.0,57937.0,0.16121435]
[1720792446752,0.03991459,57938.0,57937.0,0.47021435]
[1720792446958,0.03890539,57938.0,57937.0,0.47921435]
[1720792447158,0.03790539,57938.0,57937.0,0.46921435]
[1720792448506,0.12914529,57938.0,57937.0,0.46921435]
[1720792448705,0.16809641,57938.0,57937.0,0.46921435]
[1720792448904,0.16809641,57938.0,57937.0,1.33221935]
[1720792448905,0.04174816,57938.0,57937.0,1.33221935]
[1720792449076,0.10431206,57938.0,57937.0,0.46921435]
[1720792449329,0.10431511,57938.0,57937.0,0.64181535]
[1720792449554,0.10431526,57938.0,57937.0,0.65081535]
[1720792449757,0.10431396,57938.0,57937.0,0.65081535]
[1720792450145,0.10431396,57938.0,57937.0,0.49221435]
[1720792450146,0.10531396,57938.0,57937.0,0.49221435]
[1720792450347,0.10531396,57938.0,57937.0,1.01001735]
[1720792450546,0.10531396,57938.0,57937.0,0.49221435]
[1720792450711,0.10531396,57938.0,57937.0,0.4071]
[1720792450911,0.002,57938.0,57937.0,0.49221435]
[1720792451230,0.002,57938.0,57937.0,1.50231935]
[1720792451654,0.07948114,57938.0,57937.0,1.50231935]
[1720792451877,0.10530965,57938.0,57937.0,1.50231935]
[1720792452247,0.10530965,57938.0,57937.0,1.15711735]
[1720792452848,0.12875486,57938.0,57937.0,0.5542]
[1720792453052,0.12875163,57938.0,57937.0,0.5542]